bitfinex/quotes_ETHUSD_20240607
["timestamp","ask_amount","ask_price","bid_price","bid_amount"]
[1717740548811,2.61965,3817.3,3817.2,0.10525091]
[1717740548987,3.39965,3817.3,3817.2,0.10525091]
[1717740549188,3.39965,3817.3,3817.2,2.51615091]
[1717740549510,3.39965,3817.3,3817.2,3.88143733]
[1717740549885,3.39965,3817.3,3817.2,2.51615091]
[1717740552712,3.37365,3817.3,3817.2,2.51615091]
[1717740554325,3.37365,3817.3,3817.2,2.767766]
[1717740555928,2.61999,3816.8,3816.7,2.5]
[1717740556099,5.61999,3816.8,3816.7,2.55774931]
[1717740556293,5.61999,3816.8,3816.7,2.5]
[1717740556642,6.73619952,3816.8,3816.7,2.55774931]
[1717740556793,9.05800915,3816.8,3816.7,2.55774931]
[1717740556992,9.05800915,3816.8,3816.7,2.5]
[1717740557999,7.48781947,3816.8,3816.7,2.5]
[1717740558398,7.48793464,3816.8,3816.7,2.5]
[1717740559838,7.48793355,3816.8,3816.7,2.5]
[1717740560203,9.05799753,3816.8,3816.7,2.5]
[1717740560896,7.48793355,3816.8,3816.7,2.5]
[1717740561101,7.48793355,3816.8,3816.7,2.55774931]
[1717740561302,9.05799753,3816.8,3816.7,2.55774931]
[1717740562242,7.48793355,3816.8,3816.7,2.55774931]
[1717740562406,6.92160995,3816.8,3816.7,0.05774931]
[1717740562608,6.92160995,3816.8,3816.4,2.29476881]
[1717740562817,0.78,3816.5,3816.4,2.29476881]
[1717740563212,3.78,3816.5,3816.4,2.35251812]
[1717740563417,3.78,3816.5,3816.4,2.29476881]
[1717740563612,3.78,3816.5,3816.4,2.35251812]
[1717740569528,4.33,3816.5,3816.4,2.35251812]
[1717740570336,5.362174,3816.5,3816.4,2.35251812]
[1717740570566,5.362174,3816.5,3816.4,2.29476881]
[1717740575354,4.582174,3816.5,3816.4,2.29476881]
[1717740575568,5.362174,3816.5,3816.4,2.29476881]
[1717740579346,4.582174,3816.5,3816.4,2.29476881]
[1717740579530,6.7718,3816.5,3816.4,2.29476881]
[1717740581661,8.9085565,3816.5,3816.4,2.29476881]
[1717740582389,6.7718,3816.5,3816.4,2.29476881]
[1717740583368,7.33813748,3816.5,3816.4,2.29476881]
[1717740584243,8.90855671,3816.5,3816.4,2.29476881]
[1717740584444,10.32342438,3816.5,3816.4,2.29476881]
[1717740584836,10.3233738,3816.5,3816.4,2.29476881]
[1717740585180,8.7530047,3816.5,3816.4,2.29476881]
[1717740587182,5.5312047,3816.5,3816.4,2.29476881]
[1717740587478,6.46661856,3816.5,3816.4,2.29476881]
[1717740588546,4.89633703,3816.5,3816.4,2.29476881]
[1717740589557,4.33,3816.5,3816.4,2.29476881]
[1717740589759,4.89632998,3816.5,3816.4,2.29476881]
[1717740591364,4.89633065,3816.5,3816.4,2.29476881]
[1717740597424,4.89633504,3816.5,3816.4,2.29476881]
[1717740600202,5.90998054,3816.5,3816.4,2.29476881]
[1717740600803,3.56633504,3816.5,3816.4,2.29476881]
[1717740601109,2.35033411,3816.5,3816.4,4.77586881]
[1717740601339,0.78,3816.5,3816.4,6.14166446]
[1717740601546,0.78,3816.5,3816.4,6.20009283]
[1717740602257,0.78,3816.5,3816.4,6.20000843]
[1717740602743,0.78,3816.5,3816.4,6.20003635]
[1717740602945,0.78,3816.5,3816.4,4.83429718]
[1717740602946,2.35033411,3816.5,3816.4,4.83429718]
[1717740603275,0.78,3816.5,3816.4,6.20005235]
[1717740604667,2.62013,3816.6,3816.4,6.20005235]
[1717740604851,0.78,3816.5,3816.4,4.83429718]
[1717740605057,0.78,3816.5,3816.4,6.200024]
[1717740606120,2.62013,3816.6,3816.4,6.36303029]
[1717740606336,2.62013,3816.6,3816.5,6.55672447]
[1717740606634,2.62013,3816.6,3816.5,6.61497228]
[1717740607383,2.62013,3816.6,3816.5,6.34194655]
[1717740608281,2.62013,3816.6,3816.5,5.51734737]
[1717740609183,2.62013,3816.6,3816.5,6.34157209]
[1717740609986,2.62013,3816.6,3816.5,6.34134486]
[1717740611146,2.62013,3816.6,3816.5,3.6964474]
[1717740611547,3.40013,3816.6,3816.5,3.69644912]
[1717740612257,3.40013,3816.6,3816.5,4.24563435]
[1717740612593,3.40013,3816.6,3816.5,1.42374912]
[1717740613920,3.40013,3816.6,3816.5,0.05824781]
[1717740627988,3.740143,3816.6,3816.5,0.05824781]
[1717740628191,4.290143,3816.6,3816.5,0.05824781]
[1717740629593,4.290143,3816.6,3816.4,2.29476881]
[1717740629797,0.55,3816.5,3816.4,2.29476881]
[1717740631529,0.55,3816.5,3816.4,2.3797436]
[1717740631730,1.3700028,3816.5,3816.4,2.3797436]
[1717740633223,1.3700028,3816.5,3816.4,2.29476881]
[1717740633529,7.5693028,3816.5,3816.4,0.07670045]
[1717740633726,5.13562126,3816.5,3816.4,0.07670045]
[1717740634023,8.13562126,3816.5,3816.4,8.81e-06]
[1717740634818,4.93632126,3816.5,3816.4,8.81e-06]
[1717740635023,5.71632126,3816.5,3816.4,8.81e-06]
[1717740638528,5.1500028,3816.5,3816.4,8.81e-06]
[1717740642824,7.5746028,3816.5,3816.4,8.81e-06]
[1717740647108,7.619776,3816.5,3816.4,8.81e-06]
[1717740656168,8.18620742,3816.5,3816.4,8.81e-06]
[1717740656850,7.40620742,3816.5,3816.4,8.81e-06]
[1717740657050,7.619776,3816.5,3816.4,8.81e-06]
[1717740657747,8.18620574,3816.5,3816.4,8.81e-06]
[1717740663754,10.94120574,3816.5,3816.4,8.81e-06]
[1717740668149,10.9412522,3816.5,3816.4,8.81e-06]
[1717740669778,4.9816522,3816.5,3816.4,8.81e-06]
[1717740669949,5.7616522,3816.5,3816.4,8.81e-06]
[1717740677355,8.1801522,3816.5,3816.4,8.81e-06]
[1717740681899,7.613676,3816.5,3816.4,8.81e-06]
[1717740682199,8.18013523,3816.5,3816.4,8.81e-06]
[1717740688110,8.18014905,3816.5,3816.4,8.81e-06]
[1717740689729,8.18014879,3816.5,3816.4,8.81e-06]
[1717740690704,8.18014932,3816.5,3816.4,8.81e-06]
[1717740691897,8.44151557,3816.5,3816.4,8.81e-06]
[1717740696104,7.87504225,3816.5,3816.4,8.81e-06]
[1717740696322,8.4415159,3816.5,3816.4,8.81e-06]
[1717740700594,11.1965159,3816.5,3816.4,8.81e-06]
[1717740702520,10.4165159,3816.5,3816.4,8.81e-06]
[1717740702711,11.1965159,3816.5,3816.4,8.81e-06]
[1717740703901,10.41657875,3816.5,3816.4,8.81e-06]
[1717740704129,11.19657875,3816.5,3816.4,8.81e-06]
[1717740709517,10.41657875,3816.5,3816.4,8.81e-06]
[1717740709799,8.77805292,3816.5,3816.4,8.81e-06]
[1717740710005,5.24056,3816.4,3816.1,8.81e-06]
[1717740710239,0.78,3816.2,3816.1,8.81e-06]
[1717740710398,1.33,3816.2,3816.1,8.81e-06]
[1717740710603,6.5708,3816.2,3816.1,8.81e-06]
[1717740710813,9.5708,3816.2,3816.1,8.81e-06]
[1717740711645,6.9504,3816.2,3816.1,8.81e-06]
[1717740713330,6.9504,3816.2,3816.1,0.07477308]
[1717740714144,6.9504,3816.2,3816.1,8.81e-06]
[1717740717346,6.1704,3816.2,3816.1,8.81e-06]
[1717740717532,6.9504,3816.2,3816.1,8.81e-06]
[1717740718313,6.1704,3816.2,3816.1,8.81e-06]
[1717740718509,6.9504,3816.2,3816.1,8.81e-06]
[1717740721955,6.1704,3816.2,3816.1,8.81e-06]
[1717740722113,3.1704,3816.2,3816.1,2.49766969]
[1717740722317,2.6204,3816.2,3816.1,2.57221662]
[1717740723834,5.62014,3816.6,3816.2,2.2959]
[1717740724035,5.62014,3816.6,3816.4,2.4174]
[1717740724649,0.55,3816.5,3816.4,2.4174]
[1717740725155,5.62014,3816.6,3816.4,2.4174]
[1717740742870,0.55,3816.5,3816.4,2.4174]
[1717740744172,2.62036,3816.3,3816.2,2.367]
[1717740744470,2.62036,3816.3,3816.2,2.44114667]
[1717740755042,2.62036,3816.3,3816.2,0.07414667]
[1717740755357,2.62036,3816.3,3815.9,2.3042]
[1717740755557,2.62036,3816.3,3816.0,0.0741381]
[1717740762279,2.62036,3816.3,3816.1,1.36577571]
[1717740762443,2.62036,3816.3,3816.0,0.62332333]
[1717740762646,2.62036,3816.3,3816.1,1.36574052]
[1717740762871,2.62036,3816.3,3816.1,0.0741381]
[1717740763273,2.62036,3816.3,3816.0,0.54918523]
[1717740763458,2.62036,3816.3,3816.2,0.0741381]
[1717740763661,2.62036,3816.3,3816.1,1.36576716]
[1717740763951,2.62036,3816.3,3816.2,0.0741381]
[1717740764272,2.62036,3816.3,3816.2,1.36575567]
[1717740764469,2.62036,3816.3,3816.2,1.43989377]
[1717740764870,2.62036,3816.3,3816.2,1.43987057]
[1717740765273,3.17036,3816.3,3816.2,1.43987057]
[1717740765452,3.77431,3816.3,3816.2,0.0741381]
[1717740765848,3.77431,3816.3,3816.2,1.36577537]
[1717740766047,3.77431,3816.3,3816.2,1.43991347]
[1717740768090,3.22431,3816.3,3816.2,1.43991347]
[1717740768261,3.22431,3816.3,3816.2,1.9890987]
[1717740773279,3.22431,3816.3,3816.2,1.43991347]
[1717740774396,3.22431,3816.3,3816.2,1.43986722]
[1717740776875,3.22431,3816.3,3816.2,1.99027343]
[1717740778800,3.77431,3816.3,3816.2,1.99027343]
[1717740781510,3.77431,3816.3,3816.2,1.43986722]
[1717740783607,3.77431,3816.3,3816.2,1.99027343]
[1717740784325,3.77431,3816.3,3816.2,1.43986722]
[1717740788809,3.77431,3816.3,3816.2,1.99027343]
[1717740790431,3.77431,3816.3,3816.2,1.43986722]
[1717740793368,3.77431,3816.3,3816.2,1.99027343]
[1717740795841,3.77431,3816.3,3816.2,1.43986722]
[1717740797355,3.77431,3816.3,3816.2,1.99027343]
[1717740798703,7.723241,3816.3,3816.2,1.99027343]
[1717740798906,7.723241,3816.3,3816.2,1.43986722]
[1717740801256,6.943241,3816.3,3816.2,1.43986722]
[1717740802456,6.26581,3816.3,3816.2,1.43986722]
[1717740806375,6.26581,3816.3,3816.2,0.0741381]
[1717740806747,6.26581,3816.3,3816.0,0.55040621]
[1717740806948,6.26581,3816.3,3816.2,0.07423528]
[1717740807150,6.26581,3816.3,3816.1,1.36586103]
[1717740807350,6.26581,3816.3,3816.2,0.07423528]
[1717740807653,6.26581,3816.3,3816.0,0.55040621]
[1717740807865,6.26581,3816.3,3816.1,1.44009548]
[1717740808175,6.26581,3816.3,3816.1,0.07423528]
[1717740812065,6.26581,3816.3,3816.2,0.07422098]
[1717740812284,6.26581,3816.3,3816.0,0.55040621]
[1717740812462,6.26581,3816.3,3816.2,0.07422098]
[1717740812862,6.26581,3816.3,3816.0,0.55040621]
[1717740813177,6.26581,3816.3,3816.1,1.44008536]
[1717740813398,6.26581,3816.3,3816.1,0.07422098]
[1717740814791,6.26581,3816.3,3815.9,0.55040621]
[1717740815094,6.26581,3816.3,3816.0,1.36586588]
[1717740815293,6.26581,3816.3,3816.1,1.36586588]
[1717740815494,6.26581,3816.3,3816.0,0.07423527]
[1717740815694,6.26581,3816.3,3816.1,1.3658658]
[1717740815868,6.26581,3816.3,3816.1,0.07423527]
[1717740816268,6.26581,3816.3,3815.9,0.55040621]
[1717740816486,6.26581,3816.3,3816.0,1.44010015]
[1717740816659,6.26581,3816.3,3816.1,1.36586488]
[1717740816860,6.26581,3816.3,3815.9,0.55040621]
[1717740817059,6.26581,3816.3,3816.0,1.44010154]
[1717740817260,6.26581,3816.3,3816.1,1.36586627]
[1717740817582,6.26581,3816.3,3815.9,0.55040621]
[1717740817768,6.26581,3816.3,3816.2,0.07423527]
[1717740817968,6.26581,3816.3,3816.0,1.36586521]
[1717740818298,6.26581,3816.3,3816.1,1.36586573]
[1717740818460,6.26581,3816.3,3816.1,0.07423527]
[1717740818788,6.26581,3816.3,3815.9,0.55040621]
[1717740818990,6.26581,3816.3,3816.2,0.07423527]
[1717740819519,6.26581,3816.3,3815.9,0.55040621]
[1717740819789,6.26581,3816.3,3816.2,0.07423527]
[1717740820298,6.26581,3816.3,3816.0,0.55040621]
[1717740820487,6.26581,3816.3,3816.2,0.07423527]
[1717740820690,6.26581,3816.3,3816.0,0.55040621]
[1717740820880,6.26581,3816.3,3816.2,0.07423527]
[1717740821299,6.26581,3816.3,3815.9,0.55040621]
[1717740821514,6.26581,3816.3,3816.2,0.07177337]
[1717740821808,6.26581,3816.3,3815.9,0.55040621]
[1717740822007,6.26581,3816.3,3816.2,0.07177337]
[1717740822208,6.26581,3816.3,3815.9,0.55040621]
[1717740822507,6.26581,3816.3,3816.0,1.36587965]
[1717740822702,6.26581,3816.3,3816.1,1.36587965]
[1717740822879,6.26581,3816.3,3816.0,0.07177337]
[1717740823087,6.26581,3816.3,3816.1,1.365879]
[1717740823265,6.26581,3816.3,3816.0,0.07177337]
[1717740823615,6.26581,3816.3,3816.1,1.36587471]
[1717740823909,6.26581,3816.3,3815.9,0.55040621]
[1717740824069,6.26581,3816.3,3816.2,0.07177337]
[1717740824269,6.26581,3816.3,3815.9,0.55040621]
[1717740824497,6.26581,3816.3,3816.0,1.43766233]
[1717740824663,6.26581,3816.3,3816.1,1.36588896]
[1717740824863,6.26581,3816.3,3815.9,0.55040621]
[1717740825107,6.26581,3816.3,3816.0,1.43766542]
[1717740825280,6.26581,3816.3,3816.1,1.36589205]
[1717740825481,6.26581,3816.3,3815.9,0.55040621]
[1717740825681,6.26581,3816.3,3816.0,1.43766451]
[1717740826022,6.26581,3816.3,3816.1,1.36589114]
[1717740826165,6.26581,3816.3,3816.0,0.07177337]
[1717740826365,6.26581,3816.3,3816.1,1.36589111]
[1717740826562,6.26581,3816.3,3816.1,0.07177337]
[1717740827072,6.26581,3816.3,3816.2,0.07177337]
[1717740827271,6.26581,3816.3,3815.9,0.55040621]
[1717740827487,6.26581,3816.3,3816.0,1.43766524]
[1717740827673,6.26581,3816.3,3816.1,1.36589187]
[1717740827894,6.26581,3816.3,3815.9,0.55040621]
[1717740828206,6.26581,3816.3,3816.2,0.07177337]
[1717740828406,6.26581,3816.3,3816.0,0.55040621]
[1717740828717,6.26581,3816.3,3816.1,1.365855]
[1717740828891,6.26581,3816.3,3816.1,0.07177337]
[1717740830095,6.26581,3816.3,3815.9,0.55040621]
[1717740830419,6.26581,3816.3,3816.2,0.07177337]
[1717740830595,7.270391,3816.3,3816.0,1.36587413]
[1717740830795,6.26581,3816.3,3816.2,0.07177337]
[1717740831009,6.26581,3816.3,3815.9,0.55040621]
[1717740831320,6.26581,3816.3,3816.0,1.36588575]
[1717740831627,6.26581,3816.3,3816.0,0.07175337]
[1717740831832,6.26581,3816.3,3816.1,1.36588738]
[1717740832116,7.270391,3816.3,3815.9,0.55040621]
[1717740832329,7.270391,3816.3,3816.2,0.07175337]
[1717740832473,7.270391,3816.3,3815.9,0.55040621]
[1717740832673,7.270391,3816.3,3816.0,1.43760435]
[1717740832918,7.270391,3816.3,3816.1,1.36585098]
[1717740833079,7.270391,3816.3,3816.0,0.07175337]
[1717740833938,2.62061,3815.9,3815.8,0.55040621]
[1717740834086,2.62061,3815.9,3815.8,1.91630946]
[1717740834933,2.62061,3815.9,3815.8,0.55040621]
[1717740835234,2.62061,3815.9,3815.8,1.365874]
[1717740836319,2.62061,3815.9,3815.8,1.91619272]
[1717740837987,2.62061,3815.9,3815.8,1.91622543]
[1717740841894,2.62061,3815.9,3815.8,1.36590671]
[1717740842296,2.62061,3815.9,3815.8,1.91625684]
[1717740845184,2.62061,3815.9,3815.8,1.36590671]
[1717740845883,2.882671,3815.9,3815.8,1.36590671]
[1717740846083,5.806471,3815.9,3815.6,0.55035013]
[1717740846314,5.806471,3815.9,3815.7,1.36600144]
[1717740846315,6.036471,3815.9,3815.7,1.36600144]
[1717740846519,2.62075,3815.7,3815.5,0.55035013]
[1717740846721,2.62075,3815.7,3815.6,1.36602182]
[1717740846883,4.0134721,3815.7,3815.6,1.36602182]
[1717740848000,4.0134721,3815.7,3815.6,1.36601548]
[1717740848200,3.17075,3815.7,3815.6,1.36601548]
[1717740848909,3.17075,3815.7,3815.1,0.82422472]
[1717740848910,2.62102,3815.3,3815.1,0.82422472]
[1717740849108,2.62102,3815.3,3815.2,1.36609952]
[1717740851092,2.62102,3815.3,3815.0,1.8500955]
[1717740851292,2.62102,3815.3,3815.1,1.36615308]
[1717740851494,2.62102,3815.3,3815.0,1.8500955]
[1717740851728,2.62102,3815.3,3815.1,1.3661524]
[1717740851902,2.62102,3815.3,3815.0,1.3]
[1717740852103,2.62102,3815.3,3815.1,1.36616851]
[1717740852306,2.62102,3815.3,3815.0,1.3]
[1717740852827,2.62102,3815.3,3815.1,1.36616944]
[1717740853011,2.62102,3815.3,3815.0,1.3]
[1717740861711,2.62102,3815.3,3815.1,0.0648778]
[1717740881861,2.62102,3815.3,3815.2,1.36603424]
[1717740882262,2.62102,3815.3,3815.2,1.43122086]
[1717740888235,2.62102,3815.3,3815.2,1.98131636]
[1717740889632,2.62102,3815.3,3815.2,1.43122086]
[1717740889942,2.62102,3815.3,3815.2,1.98131636]
[1717740892971,2.62102,3815.3,3815.2,1.43122086]
[1717740893267,2.62102,3815.3,3815.2,1.98131636]
[1717740898576,2.62102,3815.3,3815.2,1.43122086]
[1717740899046,3.74599623,3815.3,3815.2,1.43122086]
[1717740899854,3.74599623,3815.3,3815.2,0.06518662]
[1717740900254,3.74599623,3815.3,3815.0,1.8500955]
[1717740900577,3.74599623,3815.3,3815.1,1.36618151]
[1717740900897,3.74599623,3815.3,3815.1,0.06513515]
[1717740901038,0.61593962,3815.2,3815.1,0.06513515]
[1717740901238,0.61593962,3815.2,3815.1,1.43132057]
[1717740901444,4.24103962,3815.2,3815.1,0.06513515]
[1717740901990,2.62116,3815.1,3815.0,1.3]
[1717740902140,4.11948196,3815.1,3815.0,1.3]
[1717740902339,4.11948196,3815.1,3815.0,1.36524954]
[1717740904588,7.11948196,3815.1,3815.0,1.36524954]
[1717740907894,2.62116,3815.1,3815.0,1.36524954]
[1717740908109,2.62116,3815.1,3815.0,2.73146622]
[1717740908456,2.62116,3815.1,3815.0,3.28156172]
[1717740908755,2.62116,3815.1,3815.0,2.73146622]
[1717740910254,2.62116,3815.1,3815.0,1.36524954]
[1717740910461,2.62116,3815.1,3815.0,2.73139487]
[1717740911250,2.62116,3815.1,3815.0,3.28149037]
[1717740915079,2.62116,3815.1,3815.0,2.73139487]
[1717740916389,2.62116,3815.1,3815.0,3.28126649]
[1717740916564,2.62116,3815.1,3815.0,2.73139487]
[1717740916950,2.62116,3815.1,3815.0,5.37723509]
[1717740917450,2.62092,3815.5,3815.0,5.37723509]
[1717740917644,2.62092,3815.5,3815.2,0.54982043]
[1717740917883,2.62092,3815.5,3815.3,1.36614533]
[1717740918054,2.62092,3815.5,3815.4,1.36614533]
[1717740918704,4.95822,3815.5,3815.4,1.43138629]
[1717740918852,4.95822,3815.5,3815.4,0.06524096]
[1717740919363,4.95822,3815.5,3815.2,0.54982043]
[1717740919564,4.95822,3815.5,3815.3,1.366033]
[1717740919781,4.95822,3815.5,3815.3,0.06524096]
[1717740920191,4.95822,3815.5,3815.2,0.54982043]
[1717740920515,4.95822,3815.5,3815.3,1.36603411]
[1717740920671,4.95822,3815.5,3815.3,0.06524096]
[1717740920869,0.55,3815.4,3815.3,0.06524096]
[1717740921103,0.55,3815.4,3815.0,1.84982043]
[1717740921104,2.62103,3815.3,3815.0,1.84982043]
[1717740921392,2.62103,3815.3,3815.1,1.36612502]
[1717740921602,2.62103,3815.3,3815.2,1.36612502]
[1717740921766,3.17103,3815.3,3815.2,1.43136598]
[1717740922861,3.17103,3815.3,3815.2,0.06524096]
[1717740923214,3.17103,3815.3,3815.0,1.84982043]
[1717740923361,3.17103,3815.3,3815.2,0.06524096]
[1717740923558,2.62103,3815.3,3815.2,1.36613498]
[1717740923868,2.62103,3815.3,3815.2,1.43137594]
[1717740924067,2.62103,3815.3,3815.2,1.98119637]
[1717740924278,2.62103,3815.3,3815.2,1.43137594]
[1717740938316,2.62103,3815.3,3815.2,1.43128641]
[1717740946928,2.62103,3815.3,3815.2,1.98110684]
[1717740949424,2.62078,3815.7,3815.2,1.98110684]
[1717740949590,2.62078,3815.7,3815.3,2.4781]
[1717740949791,2.62078,3815.7,3815.6,0.54982043]
[1717740950127,2.62078,3815.7,3815.6,1.36604545]
[1717740950426,2.62078,3815.7,3815.6,1.97889306]
[1717740950632,2.62078,3815.7,3815.6,1.42902666]
[1717740951528,2.62051,3816.1,3815.7,2.3907]
[1717740951733,2.62051,3816.1,3815.8,1.91588013]
[1717740952031,2.62051,3816.1,3816.0,0.54983468]
[1717740952231,2.62051,3816.1,3816.0,1.36604545]
[1717740952434,2.62051,3816.1,3816.0,1.91588013]
[1717740952635,2.62051,3816.1,3816.0,1.97864158]
[1717740953718,2.62051,3816.1,3816.0,1.4288069]
[1717740956374,2.62051,3816.1,3816.0,1.42846203]
[1717740959263,2.62051,3816.1,3816.0,2.20846203]
[1717740960442,2.62051,3816.1,3816.0,2.20843601]
[1717740961659,0.60395,3816.3,3816.1,2.4451]
[1717740962035,0.60395,3816.3,3816.2,2.20823492]
[1717740964342,0.60395,3816.3,3816.2,0.84261879]
[1717740965048,0.60395,3816.3,3816.2,0.06261879]
[1717740965248,0.60395,3816.3,3816.0,0.78]
[1717740966043,0.60395,3816.3,3816.1,0.06261879]
[1717740966230,0.60395,3816.3,3816.0,0.78]
[1717740966632,0.60395,3816.3,3816.1,0.06261879]
[1717740967540,0.60395,3816.3,3816.0,0.78]
[1717740967958,0.60395,3816.3,3816.1,0.06261879]
[1717740968470,0.60395,3816.3,3816.0,0.78]
[1717740968647,0.60395,3816.3,3816.2,0.06261879]
[1717740968847,0.60395,3816.3,3816.0,0.78]
[1717740969041,0.60395,3816.3,3816.0,1.14329347]
[1717740969250,0.60395,3816.3,3816.1,0.06261879]
[1717740972562,0.60395,3816.3,3816.2,0.78]
[1717740973275,0.60395,3816.3,3816.2,0.84259595]
[1717740984634,0.60395,3816.3,3816.2,2.20814268]
[1717740984841,0.60395,3816.3,3816.2,2.56636289]
[1717740989389,0.60395,3816.3,3816.2,3.11619757]
[1717740992289,0.60395,3816.3,3816.2,2.56636289]
[1717740993846,0.60395,3816.3,3816.2,2.56635592]
[1717740994359,0.60395,3816.3,3816.2,3.39058064]
[1717740994976,0.60395,3816.3,3816.2,6.79974498]
[1717740995376,0.60395,3816.3,3816.2,8.17254441]
[1717740996989,0.60395,3816.3,3816.2,5.75994441]
[1717740997149,0.60395,3816.3,3816.2,4.38714498]
[1717741000293,0.60395,3816.3,3816.2,6.83814498]
[1717741000959,0.60395,3816.3,3816.2,6.92339262]
[1717741005963,0.60395,3816.3,3816.2,6.14339262]
[1717741006306,0.60395,3816.3,3816.2,6.92339262]
[1717741016177,0.60395,3816.3,3816.2,8.57075194]
[1717741016397,0.60395,3816.3,3816.2,6.92339262]
[1717741021825,0.60395,3816.3,3816.2,7.20642269]
[1717741022228,0.60395,3816.3,3816.2,6.92339262]
[1717741024444,0.60395,3816.3,3816.2,8.56964098]
[1717741024785,0.60395,3816.3,3816.2,6.92339262]
[1717741025284,0.60395,3816.3,3816.2,8.5696361]
[1717741026028,0.60395,3816.3,3816.2,6.92339262]
[1717741026730,0.60395,3816.3,3816.2,6.14339262]
[1717741026935,0.60395,3816.3,3816.2,8.5696344]
[1717741028314,0.60395,3816.3,3816.2,6.92339262]
[1717741032840,2.91075,3816.3,3816.2,3.33417241]
[1717741032986,2.91075,3816.3,3816.2,4.70652873]
[1717741033190,2.91075,3816.3,3816.2,5.48652873]
[1717741033437,2.91075,3816.3,3816.2,4.11417241]
[1717741033640,2.91075,3816.3,3816.2,3.11699099]
[1717741034533,2.91075,3816.3,3816.2,2.29338335]
[1717741035405,2.91075,3816.3,3816.2,3.11699099]
[1717741036345,2.91075,3816.3,3816.2,3.1169794]
[1717741038235,2.91075,3816.3,3816.2,2.29337176]
[1717741038418,2.91075,3816.3,3816.2,3.1169794]
[1717741038847,2.91075,3816.3,3816.2,3.39148653]
[1717741039006,2.91075,3816.3,3816.2,2.29337176]
[1717741041607,2.91075,3816.3,3816.2,3.39148653]
[1717741041924,2.91075,3816.3,3816.2,2.29337176]
[1717741042831,2.91075,3816.3,3816.2,5.21227559]
[1717741043139,2.91075,3816.3,3816.2,3.39148653]
[1717741043340,0.60395,3816.3,3816.2,4.11416082]
[1717741044124,0.60395,3816.3,3816.2,5.48698447]
[1717741045222,0.60395,3816.3,3816.2,4.11416082]
[1717741045421,0.60395,3816.3,3816.2,5.48698447]
[1717741046435,0.60395,3816.3,3816.2,4.11416082]
[1717741049350,0.60395,3816.3,3816.2,5.48698447]
[1717741050325,0.60395,3816.3,3816.2,4.11416082]
[1717741050853,0.60395,3816.3,3816.2,5.48698447]
[1717741051433,0.60395,3816.3,3816.2,4.11416082]
[1717741055138,0.60395,3816.3,3816.2,4.11404407]
[1717741056342,0.60395,3816.3,3816.2,5.48662677]
[1717741056945,0.60395,3816.3,3816.2,4.11404407]
[1717741057371,0.60395,3816.3,3816.2,4.11401549]
[1717741059228,0.60395,3816.3,3816.2,5.48650978]
[1717741059429,0.60395,3816.3,3816.2,5.48654615]
[1717741060839,0.60395,3816.3,3816.2,4.11401556]
[1717741061247,0.60395,3816.3,3816.2,5.21208445]
[1717741062054,0.60395,3816.3,3816.2,3.39129539]
[1717741062254,0.60395,3816.3,3816.2,5.21208445]
[1717741062477,0.60395,3816.3,3816.2,3.39129539]
[1717741062630,0.60395,3816.3,3816.2,5.21208445]
[1717741062837,0.60395,3816.3,3816.2,3.39129539]
[1717741063035,0.60395,3816.3,3816.2,5.21208445]
[1717741063230,0.60395,3816.3,3816.2,3.39129539]
[1717741063431,0.60395,3816.3,3816.2,5.21208445]
[1717741063636,0.60395,3816.3,3816.2,3.39129539]
[1717741063864,0.60395,3816.3,3816.2,5.21208445]
[1717741064167,0.60395,3816.3,3816.2,3.39129539]
[1717741064362,0.60395,3816.3,3816.2,5.21208445]
[1717741064562,0.60395,3816.3,3816.2,3.39129539]
[1717741064972,0.60395,3816.3,3816.2,5.21213931]
[1717741065145,0.60395,3816.3,3816.2,3.39135025]
[1717741065468,0.60395,3816.3,3816.2,5.21213931]
[1717741065670,0.60395,3816.3,3816.2,3.39135025]
[1717741065859,0.60395,3816.3,3816.2,5.21213931]
[1717741066166,0.60395,3816.3,3816.2,3.39135025]
[1717741066367,0.60395,3816.3,3816.2,5.21213931]
[1717741066669,0.60395,3816.3,3816.2,3.39135025]
[1717741066837,0.60395,3816.3,3816.2,5.21213931]
[1717741067036,0.60395,3816.3,3816.2,3.39135025]
[1717741067248,0.60395,3816.3,3816.2,5.21213931]
[1717741067462,0.60395,3816.3,3816.2,3.39135025]
[1717741067661,0.60395,3816.3,3816.2,5.21213931]
[1717741067870,0.60395,3816.3,3816.2,3.39135025]
[1717741068075,0.60395,3816.3,3816.2,5.21213931]
[1717741069363,0.60395,3816.3,3816.2,4.11407042]
[1717741069570,0.60395,3816.3,3816.2,3.33407042]
[1717741069739,2.96235,3816.3,3816.2,4.11407042]
[1717741069942,2.96235,3816.3,3816.2,2.20803372]
[1717741070778,2.96235,3816.3,3816.2,4.02882278]
[1717741071355,2.96235,3816.3,3816.2,5.12732284]
[1717741071563,2.96235,3816.3,3816.2,3.30653378]
[1717741071746,2.96235,3816.3,3816.2,5.12732284]
[1717741071949,2.96235,3816.3,3816.2,3.30653378]
[1717741072153,2.96235,3816.3,3816.2,5.12732284]
[1717741073160,2.96235,3816.3,3816.2,3.30653378]
[1717741073360,2.96235,3816.3,3816.2,5.12732284]
[1717741073675,2.96235,3816.3,3816.2,3.30653378]
[1717741073889,2.96235,3816.3,3816.2,5.12732284]
[1717741074994,2.96235,3816.3,3816.2,2.20803372]
[1717741075196,2.96235,3816.3,3816.2,4.02882278]
[1717741075399,2.96235,3816.3,3816.2,3.24882278]
[1717741075880,2.96235,3816.3,3816.2,4.07322762]
[1717741076462,2.96235,3816.3,3816.2,2.25243856]
[1717741076677,2.96235,3816.3,3816.2,4.07322762]
[1717741077501,2.96235,3816.3,3816.2,3.24882278]
[1717741081620,2.96235,3816.3,3816.2,4.02882278]
[1717741081932,2.96235,3816.3,3816.2,5.12732284]
[1717741082213,2.96235,3816.3,3816.2,4.02882278]
[1717741082415,2.96235,3816.3,3816.2,5.12732284]
[1717741082776,0.60395,3816.3,3816.2,5.12732284]
[1717741084798,0.60395,3816.3,3816.2,4.02882278]
[1717741089033,0.60395,3816.3,3816.2,5.40153693]
[1717741091206,0.60395,3816.3,3816.2,4.02882278]
[1717741102966,0.60395,3816.3,3816.2,4.62328821]
[1717741103158,0.60395,3816.3,3816.2,3.24882278]
[1717741104258,3.03345,3816.3,3816.2,3.24882278]
[1717741105179,3.03345,3816.3,3816.2,4.07356843]
[1717741105359,3.03345,3816.3,3816.2,4.07358328]
[1717741105747,3.03345,3816.3,3816.2,3.24882278]